fUST/lending_fUST_20240725
["ID","MTS","AMOUNT","RATE_DAILY","PERIOD"]
[333116252,1721874644502,-502.12201301,0.00013698,2]
[333116253,1721874644512,-506.75445763,0.00013698,2]
[333116254,1721874644522,-500.0,0.00013698,2]
[333116255,1721874644532,-500.0,0.00013698,2]
[333116256,1721874644541,-500.0,0.00013698,2]
[333116257,1721874644551,-500.0,0.00013698,2]
[333116258,1721874644561,-1487.36,0.00013698,2]
[333116259,1721874644571,-500.0,0.00013698,2]
[333116260,1721874644582,-500.0,0.00013698,2]
[333116261,1721874644594,-501.92552862,0.00013698,2]
[333116262,1721874644606,-3608.16,0.00013698,2]
[333116263,1721874644616,-8071.21,0.00013698,2]
[333116264,1721874644626,-500.0,0.00013698,2]
[333116265,1721874644636,-500.0,0.00013698,2]
[333116266,1721874644646,-1445.13,0.00013698,2]
[333116267,1721874644662,-500.0,0.00013698,2]
[333116268,1721874644675,-993.84,0.00013698,2]
[333116269,1721874644685,-500.0,0.00013698,2]
[333116270,1721874644696,-511.56,0.00013698,2]
[333116271,1721874644705,-500.0,0.00013698,2]
[333116272,1721874644717,-563.36451456,0.00013698,2]
[333116273,1721874644728,-1712.81,0.00013698,2]
[333116274,1721874644740,-500.0,0.00013698,2]
[333116275,1721874644751,-500.0,0.00013698,2]
[333116276,1721874644763,-568.42950689,0.00013698,2]
[333116277,1721874644774,-159.159639,0.00013698,2]
[333116278,1721874644786,-790.08,0.00013698,2]
[333116279,1721874644799,-501.9105476,0.00013698,2]
[333116280,1721874644812,-159.159639,0.00013698,2]
[333116281,1721874644824,-598.41,0.00013698,2]
[333116282,1721874644835,-1913.15,0.00013698,2]
[333116283,1721874644846,-152.01002329,0.00013698,2]
[333116284,1721874644856,-500.0,0.00013698,2]
[333116285,1721874644870,-748.680278,0.00013698,2]
[333116286,1721874644881,-500.0,0.00013698,2]
[333116287,1721874644894,-370.55840165,0.00013698,2]
[333116288,1721874644911,-748.680278,0.00013698,2]
[333116289,1721874644921,-502.51931358,0.00013698,2]
[333116290,1721874644932,-748.680278,0.00013698,2]
[333116291,1721874644945,-748.680278,0.00013698,2]
[333116292,1721874644958,-500.0,0.00013698,2]
[333116293,1721874644967,-500.0,0.00013698,2]
[333116294,1721874644978,-500.0,0.00013698,2]
[333116295,1721874644988,-561.48598524,0.00013698,2]
[333116296,1721874644999,-748.680278,0.00013698,2]
[333116297,1721874645009,-748.680278,0.00013698,2]
[333116298,1721874645020,-748.680278,0.00013698,2]
[333116299,1721874645030,-748.680278,0.00013698,2]
[333116300,1721874645040,-500.0,0.00013698,2]
[333116301,1721874645050,-500.0,0.00013698,2]
[333116302,1721874645059,-500.0,0.00013698,2]
[333116303,1721874645069,-500.0,0.00013698,2]
[333116304,1721874645080,-500.0,0.00013698,2]
[333116305,1721874645091,-500.0,0.00013698,2]
[333116306,1721874645102,-500.0,0.00013698,2]
[333116307,1721874645114,-500.0,0.00013698,2]
[333116308,1721874645126,-523.5234044,0.00013698,2]
[333116309,1721874645136,-500.0,0.00013698,2]
[333116310,1721874645146,-500.0,0.00013698,2]
[333116311,1721874645161,-500.0,0.00013698,2]
[333116312,1721874645172,-502.02627204,0.00013698,2]
[333116313,1721874645182,-500.0,0.00013698,2]
[333116314,1721874645191,-545.54048525,0.00013698,2]
[333116315,1721874645201,-500.0,0.00013698,2]
[333116316,1721874645211,-500.0,0.00013698,2]
[333116317,1721874645221,-500.0,0.00013698,2]
[333116318,1721874645230,-500.0,0.00013698,2]
[333116319,1721874645240,-500.0,0.00013698,2]
[333116320,1721874645250,-500.0,0.00013698,2]
[333116321,1721874645260,-500.0,0.00013698,2]
[333116322,1721874645270,-500.0,0.00013698,2]
[333116323,1721874645280,-3000.0,0.00013699,2]
[333116324,1721874645291,-450.070613,0.00013699,2]
[333116325,1721874645301,-450.070613,0.00013699,2]
[333116326,1721874645311,-5471.5659709,0.00013699,2]
[333116327,1721874645322,-1582.718544,0.00013699,2]
[333116328,1721874645332,-151.0,0.00013699,2]
[333116329,1721874645341,-259.462354,0.00013699,2]
[333116330,1721874645352,-395.59687,0.00013699,2]
[333116331,1721874645362,-395.59687,0.00013699,2]
[333116332,1721874645372,-150.112233,0.000137,2]
[333116333,1721874645382,-150.112233,0.000137,2]
[333116334,1721874645392,-150.112233,0.000137,2]
[333116335,1721874645402,-150.112233,0.000137,2]
[333116336,1721874645416,-150.112233,0.000137,2]
[333116337,1721874645427,-150.112233,0.000137,2]
[333116338,1721874645437,-150.112233,0.000138,2]
[333116339,1721874645448,-150.112233,0.000138,2]
[333116340,1721874645461,-150.112233,0.000138,2]
[333116341,1721874645473,-150.112233,0.000138,2]
[333116342,1721874645483,-150.112233,0.000138,2]
[333116343,1721874645494,-150.112233,0.000138,2]
[333116344,1721874645505,-150.112233,0.000139,2]
[333116345,1721874645516,-150.112233,0.000139,2]
[333116346,1721874645525,-150.112233,0.000139,2]
[333116347,1721874645536,-150.112233,0.000139,2]
[333116348,1721874645547,-150.112233,0.000139,2]
[333116349,1721874645559,-150.112233,0.000139,2]
[333116350,1721874645572,-150.112233,0.000139,2]
[333116351,1721874645582,-150.112233,0.000139,2]
[333116352,1721874645592,-10195.6504972,0.000139,2]
[333116353,1721874645602,-627.12051608,0.00013937,2]
[333116354,1721874645613,-10841.7653927,0.00013942,2]
[333116355,1721874645623,-151.0,0.00013952,2]
[333116356,1721874645633,-1004.368854,0.00013952,2]
[333116357,1721874645642,-1004.368854,0.00013952,2]
[333116358,1721874645652,-245.800966,0.00013957,2]
[333116359,1721874645666,-10841.7653927,0.00013961,2]
[333116360,1721874645677,-151.434825,0.00013962,2]
[333116361,1721874645688,-297.626801,0.00013962,2]
[333116362,1721874645700,-297.626801,0.00013962,2]
[333116363,1721874645710,-151.0,0.00013962,2]
[333116364,1721874645722,-151.0,0.00013962,2]
[333116365,1721874645731,-152.164558,0.00013962,2]
[333116366,1721874645741,-151.0,0.00013962,2]
[333116367,1721874645750,-151.0,0.00013962,2]
[333116368,1721874645759,-151.0,0.00013962,2]
[333116369,1721874645769,-65050.5923561,0.00013962,2]
[333116370,1721874645779,-4739.35,0.0001397,2]
[333116371,1721874645791,-4739.35,0.0001397,2]
[333116372,1721874645802,-4739.35,0.0001397,2]
[333116373,1721874645812,-4739.35,0.0001397,2]
[333116374,1721874645825,-152.153792,0.00013971,2]
[333116375,1721874645836,-1474.099818,0.00013971,2]
[333116376,1721874645849,-1474.099818,0.00013971,2]
[333116377,1721874645862,-450.070613,0.00013971,2]
[333116378,1721874645875,-450.070613,0.00013971,2]
[333116379,1721874645885,-151.0,0.00013971,2]
[333116381,1721874645896,-151.0,0.00013971,2]
[333116382,1721874645909,-429.245528,0.00013971,2]
[333116383,1721874645921,-429.245528,0.00013971,2]
[333116384,1721874645931,-151.0,0.00013971,2]
[333116385,1721874645944,-151.0,0.00013971,2]
[333116386,1721874645956,-2297.742433,0.00013971,2]
[333116387,1721874645968,-4739.35,0.00013971,2]
[333116388,1721874645979,-4739.35,0.00013971,2]
[333116389,1721874645989,-4739.35,0.00013971,2]
[333116390,1721874646001,-2297.742433,0.00013971,2]
[333116391,1721874646011,-3028.68637522,0.00013971,2]
[333116393,1721874646204,-1710.66362478,0.00013971,2]
[333116394,1721874646214,-136.98102706,0.00013971,2]
[333116395,1721874646230,-3200.0,0.00013971,2]
[333116396,1721874646243,-1402.36897294,0.00013971,2]
[333116397,1721874646253,-4739.35,0.00013971,2]
[333116399,1721874646264,-4739.35,0.00013971,2]
[333116401,1721874646275,-4739.35,0.00013971,2]
[333116402,1721874646285,-4739.4591058,0.00013971,2]
[333116403,1721874646295,-151.0,0.00013971,2]
[333116404,1721874646305,-1004.368854,0.00013971,2]
[333116405,1721874646316,-1004.368854,0.00013971,2]
[333116406,1721874646326,-395.59687,0.00013971,2]
[333116407,1721874646337,-395.59687,0.00013971,2]
[333116408,1721874646388,-382.922588,0.00013971,2]
[333116409,1721874646398,-382.922588,0.00013971,2]
[333116410,1721874646412,-159.159639,0.00013971,2]
[333116411,1721874646422,-159.159639,0.00013971,2]
[333116412,1721874646432,-151.0,0.00013972,2]
[333116413,1721874646441,-297.626801,0.00013972,2]
[333116414,1721874646450,-297.626801,0.00013972,2]
[333116415,1721874646460,-297.626801,0.00013972,2]
[333116416,1721874646470,-297.626801,0.00013972,2]
[333116417,1721874646479,-151.0,0.00013972,2]
[333116418,1721874646489,-151.0,0.00013972,2]
[333116419,1721874646498,-500.0,0.00013972,2]
[333116420,1721874646508,-500.0,0.00013972,2]
[333116421,1721874646518,-500.0,0.00013972,2]
[333116422,1721874646527,-500.0,0.00013972,2]
[333116423,1721874646536,-500.0,0.00013972,2]
[333116424,1721874646546,-505.20930652,0.00013972,2]
[333116425,1721874646555,-249.39444719,0.00013972,2]
[333116426,1721874647294,-184.93837059,9.999e-05,2]
[333116427,1721874647304,-500.0,0.00013698,2]
[333116428,1721874647314,-1097.41,0.00013698,2]
[333116429,1721874647324,-506.75524932,0.00013698,2]
[333116430,1721874647333,-1097.41,0.00013698,2]
[333116431,1721874647343,-522.042793,0.00013698,2]
[333116432,1721874647353,-250.60555281,0.00013972,2]
[333116433,1721874647364,-500.0,0.00013972,2]
[333116434,1721874647374,-360.96765837,0.00013972,2]
[333116435,1721874647384,-622.97,0.00013972,2]
[333116436,1721874647395,-965.66,0.00013972,2]
[333116437,1721874647405,-152.292891,0.00013972,2]
[333116438,1721874647417,-1528.53,0.00013972,2]
[333116439,1721874647427,-500.0,0.00013972,2]
[333116440,1721874647438,-501.55944588,0.00013972,2]
[333116441,1721874647450,-500.0,0.00013972,2]
[333116442,1721874647460,-510.30906193,0.00013972,2]
[333116443,1721874647470,-500.0,0.00013972,2]
[333116444,1721874647479,-151.0,0.00013972,2]
[333116445,1721874647489,-151.0,0.00013972,2]
[333116446,1721874647501,-500.0,0.00013972,2]
[333116447,1721874647511,-420.74879426,0.00013972,2]
[333116448,1721874647522,-500.0,0.00013972,2]
[333116449,1721874647533,-500.0,0.00013972,2]
[333116450,1721874647542,-154.045586,0.00013972,2]
[333116451,1721874647553,-500.0,0.00013972,2]
[333116452,1721874647564,-819.1,0.00013972,2]
[333116453,1721874647574,-500.0,0.00013972,2]
[333116454,1721874647586,-151.790597,0.00013972,2]
[333116455,1721874647596,-1855.07,0.00013972,2]
[333116456,1721874647606,-500.0,0.00013972,2]
[333116457,1721874647616,-655.21,0.00013972,2]
[333116458,1721874647626,-306.22711038,0.00013972,2]
[333116459,1721874647638,-193.77288962,0.00013972,2]
[333116460,1721874647648,-506.27988982,0.00013972,2]
[333116461,1721874647659,-603.67608333,0.00013972,2]
[333116462,1721874647668,-512.50241452,0.00013972,2]
[333116463,1721874647677,-500.0,0.00013972,2]
[333116464,1721874647686,-239.35958447,0.00013972,2]
[333116508,1721875611191,-200.0,9.899e-05,2]
[333116509,1721875611213,-101.60548376,9.9e-05,2]
[333116511,1721875647107,-98.39451624,9.9e-05,2]
[333116512,1721875647138,-248.85342551,9.999e-05,2]
[333116513,1721875647160,-271.76933957,9.999e-05,2]
[333116514,1721875647184,-300.0,0.00010958,2]
[333116515,1721875647209,-6804.20541836,0.00011223,2]
[333116516,1721875754141,-447.55540475,9.9e-05,2]
[333116517,1721875754164,-200.0,9.9e-05,2]
[333116518,1721875754191,-943.20544634,9.999e-05,2]
[333116519,1721875754219,-305.48,0.00010959,2]
[333116520,1721875754242,-254.56,0.00010959,2]
[333116521,1721875754266,-212.14,0.00010959,2]
[333116522,1721875754295,-176.78,0.00010959,2]
[333116523,1721875754321,-883.92,0.00010959,2]
[333116524,1721875754346,-300.0,0.00011222,2]
[333116525,1721875754372,-18095.79458164,0.00011223,2]
[333116526,1721875754393,-586.89403535,0.00011223,2]
[333116527,1721875754415,-400.0,0.0001127,2]
[333116528,1721875754438,-161.566816,0.00012014,2]
[333116529,1721875754467,-161.566816,0.00012093,2]
[333116530,1721875754492,-161.566816,0.00012171,2]
[333116531,1721875754516,-161.566816,0.00012249,2]
[333116532,1721875754541,-161.566816,0.00012327,2]
[333116533,1721875763985,900.06779421,9.999e-05,2]
[333116534,1721875767512,154.88244705,9.999e-05,2]
[333116535,1721875769789,154.84698901,9.999e-05,2]
[333116536,1721875772965,1008.21757316,0.00011223,2]
[333116571,1721875834537,-200.0,0.0001,2]
[333116573,1721875834547,-400.0,0.0001137,2]
[333116575,1721875834558,-166.29942894,0.00012327,2]
[333116577,1721875834570,-672.5538609,0.00012327,2]
[333116602,1721875839459,-3107.58324575,0.00012327,2]
[333116605,1721875839469,-161.566816,0.00012406,2]
[333116607,1721875839479,-161.566816,0.00012484,2]
[333116608,1721875839490,-161.566816,0.00012562,2]
[333116609,1721875839501,-161.566816,0.0001264,2]
[333116610,1721875839512,-600.0,0.00013147,2]
[333116611,1721875839529,-200.0,0.00013425,2]
[333116612,1721875839541,-160.0,0.00013426,3]
[333116613,1721875839551,-2073.07167971,0.00013452,2]
[333116614,1721875839560,-160.0,0.00013489,4]
[333116615,1721875839570,-54290.80954381,0.000135,2]
[333116616,1721875839579,-160.0,0.00013551,5]
[333116617,1721875839589,-160.0,0.00013614,6]
[333116618,1721875839599,-153.0,0.00013644,2]
[333116619,1721875839610,-587.8658538,0.00013644,2]
[333116620,1721875839620,-153.0,0.00013671,2]
[333116621,1721875839630,-160.0,0.00013677,7]
[333116622,1721875839641,-33549.7217481,0.00013688,2]
[333116644,1721875840722,-3302.88395964,0.00013688,2]
[333116655,1721875843521,-347.1269054,9.999e-05,2]
[333116656,1721875843531,-60232.84419676,0.00013688,2]
[333116657,1721875843541,-1735.02,0.00013698,2]
[333116658,1721875843551,-1735.02,0.00013698,2]
[333116659,1721875843560,-1735.02,0.00013698,2]
[333116660,1721875843570,-1735.02,0.00013698,2]
[333116661,1721875843579,-1735.02,0.00013698,2]
[333116662,1721875843589,-1735.02,0.00013698,2]
[333116663,1721875843599,-1735.02,0.00013698,2]
[333116664,1721875843609,-1735.02,0.00013698,2]
[333116665,1721875843619,-1735.02,0.00013698,2]
[333116666,1721875843629,-1735.02,0.00013698,2]
[333116667,1721875843639,-1735.02,0.00013698,2]
[333116668,1721875843649,-1735.02,0.00013698,2]
[333116669,1721875843660,-1735.02,0.00013698,2]
[333116670,1721875843670,-1735.02,0.00013698,2]
[333116671,1721875843680,-1735.02,0.00013698,2]
[333116672,1721875843690,-667.90527453,0.00013698,2]
[333116673,1721875843704,-1067.11472547,0.00013698,2]
[333116674,1721875843714,-1735.02,0.00013698,2]
[333116675,1721875843724,-1735.02,0.00013698,2]
[333116676,1721875843734,-1735.02,0.00013698,2]
[333116677,1721875843744,-1735.02,0.00013698,2]
[333116678,1721875843754,-1735.02,0.00013698,2]
[333116679,1721875843764,-1735.02,0.00013698,2]
[333116680,1721875843775,-1735.02,0.00013698,2]
[333116681,1721875843785,-1735.1723699,0.00013698,2]
[333116682,1721875843796,-501.79816318,0.00013698,2]
[333116683,1721875843806,-13114.92315442,0.00013698,2]
[333116684,1721875843816,-504.75278503,0.00013698,2]
[333116685,1721875843827,-500.0,0.00013698,2]
[333116686,1721875843837,-504.13963468,0.00013698,2]
[333116687,1721875843847,-186.89924192,0.00013698,2]
[333116688,1721875843856,-500.0,0.00013698,2]
[333116689,1721875843866,-500.0,0.00013698,2]
[333116690,1721875843876,-507.19773698,0.00013698,2]
[333116691,1721875843886,-234.19832269,0.00013698,2]
[333116692,1721875843927,-265.80167731,0.00013698,2]
[333116693,1721875843937,-501.07409008,0.00013698,2]
[333116694,1721875843947,-186.58423261,0.00013698,2]
[333116702,1721875846747,-313.41576739,0.00013698,2]
[333116703,1721875846758,-502.65123056,0.00013698,2]
[333116704,1721875846769,-500.0,0.00013698,2]
[333116705,1721875846781,-151.452587,0.00013698,2]
[333116706,1721875846792,-503.40752662,0.00013698,2]
[333116707,1721875846803,-324.01586959,0.00013698,2]
[333116708,1721875846816,-500.0,0.00013698,2]
[333116709,1721875846827,-541.79007481,0.00013698,2]
[333116710,1721875846836,-500.0,0.00013698,2]
[333116711,1721875846846,-504.71827677,0.00013698,2]
[333116712,1721875846856,-500.0,0.00013698,2]
[333116713,1721875846866,-500.0,0.00013698,2]
[333116714,1721875846876,-2556.47,0.00013698,2]
[333116715,1721875846888,-2556.47,0.00013698,2]
[333116716,1721875846900,-2556.47,0.00013698,2]
[333116717,1721875846910,-500.0,0.00013698,2]
[333116718,1721875846920,-2556.47,0.00013698,2]
[333116719,1721875846932,-2556.47,0.00013698,2]
[333116720,1721875847167,-2556.47,0.00013698,2]
[333116721,1721875847178,-2556.47,0.00013698,2]
[333116722,1721875847188,-2556.47,0.00013698,2]
[333116723,1721875847197,-2556.47,0.00013698,2]
[333116724,1721875847207,-2556.47,0.00013698,2]
[333116725,1721875847218,-2556.47,0.00013698,2]
[333116726,1721875847227,-2556.47,0.00013698,2]
[333116727,1721875847241,-2556.47,0.00013698,2]
[333116728,1721875847251,-500.0,0.00013698,2]
[333116729,1721875847260,-2556.47,0.00013698,2]
[333116730,1721875847269,-2556.47,0.00013698,2]
[333116731,1721875847281,-2556.47,0.00013698,2]
[333116732,1721875847290,-2556.47,0.00013698,2]
[333116733,1721875847300,-2556.47,0.00013698,2]
[333116734,1721875847309,-2556.47,0.00013698,2]
[333116735,1721875847321,-2556.47,0.00013698,2]
[333116736,1721875847331,-2556.47,0.00013698,2]
[333116737,1721875847341,-2556.47,0.00013698,2]
[333116738,1721875847350,-2556.47,0.00013698,2]
[333116739,1721875847360,-2556.47756652,0.00013698,2]
[333116740,1721875847371,-500.0,0.00013698,2]
[333116741,1721875847380,-500.0,0.00013698,2]
[333116742,1721875847391,-500.0,0.00013698,2]
[333116743,1721875847401,-500.0,0.00013698,2]
[333116744,1721875847411,-500.0,0.00013698,2]
[333116745,1721875847421,-500.0,0.00013698,2]
[333116746,1721875847431,-312.7166706,0.00013698,2]
[333116747,1721875847441,-500.0,0.00013698,2]
[333116748,1721875847451,-500.0,0.00013698,2]
[333116749,1721875847461,-500.0,0.00013698,2]
[333116750,1721875847470,-2606.11800508,0.00013698,2]
[333116751,1721875847480,-505.55376836,0.00013698,2]
[333116752,1721875847491,-500.0,0.00013698,2]
[333116753,1721875847500,-500.0,0.00013698,2]
[333116754,1721875847511,-500.0,0.00013698,2]
[333116755,1721875847524,-500.0,0.00013698,2]
[333116756,1721875847533,-505.21529449,0.00013698,2]
[333116757,1721875847542,-504.59390204,0.00013698,2]
[333116758,1721875847551,-503.12210275,0.00013698,2]
[333116759,1721875847560,-500.0,0.00013698,2]
[333116760,1721875847570,-503.7830858,0.00013698,2]
[333116761,1721875847581,-503.87897062,0.00013698,2]
[333116762,1721875847591,-500.0,0.00013698,2]
[333116763,1721875847601,-500.0,0.00013698,2]
[333116764,1721875847610,-500.0,0.00013698,2]
[333116765,1721875847620,-490.50787464,0.00013698,2]
[333116766,1721875847629,-501.95033652,0.00013698,2]
[333116767,1721875847638,-500.0,0.00013698,2]
[333116768,1721875847647,-500.0,0.00013698,2]
[333116769,1721875847658,-529.45488832,0.00013698,2]
[333116770,1721875847669,-261.53785997,0.00013698,2]
[333116771,1721875847680,-500.0,0.00013698,2]
[333116772,1721875847692,-634.5,0.00013698,2]
[333116773,1721875847703,-500.0,0.00013698,2]
[333116774,1721875847714,-500.0,0.00013698,2]
[333116775,1721875847725,-501.11311074,0.00013698,2]
[333116776,1721875847736,-500.0,0.00013698,2]
[333116777,1721875847753,-500.0,0.00013698,2]
[333116778,1721875847769,-503.38387286,0.00013698,2]
[333116779,1721875847782,-500.0,0.00013698,2]
[333116780,1721875847793,-500.0,0.00013698,2]
[333116781,1721875847804,-588.40837777,0.00013698,2]
[333116782,1721875847816,-515.51137909,0.00013698,2]
[333116783,1721875847827,-501.67174384,0.00013698,2]
[333116784,1721875847838,-500.0,0.00013698,2]
[333116785,1721875847850,-500.0,0.00013698,2]
[333116786,1721875847860,-500.0,0.00013698,2]
[333116787,1721875847869,-503.94226395,0.00013698,2]
[333116788,1721875847880,-500.0,0.00013698,2]
[333116789,1721875847890,-506.61529434,0.00013698,2]
[333116790,1721875847900,-151.958654,0.00013698,2]
[333116791,1721875847912,-500.0,0.00013698,2]
[333116792,1721875847925,-500.0,0.00013698,2]
[333116793,1721875847937,-500.0,0.00013698,2]
[333116794,1721875847948,-500.0,0.00013698,2]
[333116795,1721875847959,-500.0,0.00013698,2]
[333116796,1721875847968,-504.35209315,0.00013698,2]
[333116797,1721875847978,-151.434825,0.00013698,2]
[333116798,1721875847988,-500.0,0.00013698,2]
[333116799,1721875847999,-500.0,0.00013698,2]
[333116800,1721875848010,-151.307164,0.00013698,2]
[333116801,1721875848021,-500.0,0.00013698,2]
[333116802,1721875848033,-1077.24,0.00013698,2]
[333116803,1721875848043,-500.0,0.00013698,2]
[333116804,1721875848053,-500.0,0.00013698,2]
[333116805,1721875848063,-1283.01,0.00013698,2]
[333116806,1721875848073,-500.0,0.00013698,2]
[333116807,1721875848083,-502.95042795,0.00013698,2]
[333116808,1721875848094,-500.0,0.00013698,2]
[333116809,1721875848104,-574.06,0.00013698,2]
[333116810,1721875848114,-500.0,0.00013698,2]
[333116811,1721875848124,-506.4426159,0.00013698,2]
[333116812,1721875848133,-500.0,0.00013698,2]
[333116813,1721875848142,-500.0,0.00013698,2]
[333116814,1721875848152,-519.27147825,0.00013698,2]
[333116815,1721875848162,-502.96939571,0.00013698,2]
[333116816,1721875848172,-508.62927839,0.00013698,2]
[333116817,1721875848182,-500.0,0.00013698,2]
[333116818,1721875848191,-500.0,0.00013698,2]
[333116819,1721875848201,-504.49053203,0.00013698,2]
[333116820,1721875848212,-2030.86,0.00013698,2]
[333116821,1721875848223,-503.25418383,0.00013698,2]
[333116822,1721875848236,-500.0,0.00013698,2]
[333116823,1721875848247,-500.0,0.00013698,2]
[333116824,1721875848257,-500.0,0.00013698,2]
[333116825,1721875848267,-515.11208084,0.00013698,2]
[333116826,1721875848281,-502.27704832,0.00013698,2]
[333116827,1721875848291,-500.0,0.00013698,2]
[333116828,1721875848301,-500.0,0.00013698,2]
[333116829,1721875848313,-500.0,0.00013698,2]
[333116830,1721875848328,-500.0,0.00013698,2]
[333116831,1721875848337,-500.0,0.00013698,2]
[333116832,1721875848347,-500.0,0.00013698,2]
[333116833,1721875848356,-500.0,0.00013698,2]
[333116834,1721875848366,-500.0,0.00013698,2]
[333116835,1721875848375,-500.0,0.00013698,2]
[333116836,1721875848384,-500.0,0.00013698,2]
[333116837,1721875848394,-500.0,0.00013698,2]
[333116838,1721875848403,-500.0,0.00013698,2]
[333116839,1721875848413,-500.0,0.00013698,2]
[333116840,1721875848423,-500.0,0.00013698,2]
[333116841,1721875848434,-500.0,0.00013698,2]
[333116842,1721875848445,-500.0,0.00013698,2]
[333116843,1721875848455,-500.0,0.00013698,2]
[333116844,1721875848465,-500.0,0.00013698,2]
[333116845,1721875848475,-500.0,0.00013698,2]
[333116846,1721875848484,-500.0,0.00013698,2]
[333116847,1721875848494,-1520.17,0.00013698,2]
[333116848,1721875848505,-500.0,0.00013698,2]
[333116849,1721875848516,-523.86926471,0.00013698,2]
[333116850,1721875848529,-184.98242495,0.00013698,2]
[333116851,1721875848539,-500.0,0.00013698,2]
[333116852,1721875848549,-2056.54,0.00013698,2]
[333116853,1721875848559,-2633.42,0.00013698,2]
[333116854,1721875848570,-507.40602451,0.00013698,2]
[333116855,1721875848580,-500.0,0.00013698,2]
[333116856,1721875848590,-500.0,0.00013698,2]
[333116857,1721875848600,-500.0,0.00013698,2]
[333116858,1721875848609,-500.0,0.00013698,2]
[333116859,1721875848619,-500.0,0.00013698,2]
[333116860,1721875848630,-500.0,0.00013698,2]
[333116861,1721875848639,-559.38157311,0.00013698,2]
[333116862,1721875848649,-500.0,0.00013698,2]
[333116863,1721875848659,-500.0,0.00013698,2]
[333116864,1721875848669,-500.0,0.00013698,2]
[333116865,1721875848680,-500.0,0.00013698,2]
[333116866,1721875848690,-500.0,0.00013698,2]
[333116867,1721875848700,-500.0,0.00013698,2]
[333116868,1721875848711,-500.0,0.00013698,2]
[333116869,1721875848722,-500.0,0.00013698,2]
[333116870,1721875848732,-500.0,0.00013698,2]
[333116871,1721875848742,-541.14861658,0.00013698,2]
[333116872,1721875848754,-500.0,0.00013698,2]
[333116873,1721875848765,-500.0,0.00013698,2]
[333116874,1721875848777,-500.0,0.00013698,2]
[333116875,1721875848788,-500.0,0.00013698,2]
[333116876,1721875848798,-500.0,0.00013698,2]
[333116877,1721875848809,-501.19274974,0.00013698,2]
[333116878,1721875848819,-193.77494672,0.00013698,2]
[333116879,1721875848829,-500.0,0.00013698,2]
[333116880,1721875848839,-500.0,0.00013698,2]
[333116881,1721875848849,-548.90442219,0.00013698,2]
[333116882,1721875848858,-506.13370331,0.00013698,2]
[333116883,1721875848868,-500.0,0.00013698,2]
[333116884,1721875848878,-506.99711009,0.00013698,2]
[333116885,1721875848888,-508.59482588,0.00013698,2]
[333116886,1721875848898,-500.0,0.00013698,2]
[333116887,1721875848908,-500.0,0.00013698,2]
[333116888,1721875848918,-500.0,0.00013698,2]
[333116889,1721875848928,-500.0,0.00013698,2]
[333116890,1721875848938,-1672.17,0.00013698,2]
[333116891,1721875848947,-500.0,0.00013698,2]
[333116892,1721875848956,-500.0,0.00013698,2]
[333116893,1721875848967,-551.022864,0.00013698,2]
[333116894,1721875848977,-551.022864,0.00013698,2]
[333116895,1721875848988,-551.022864,0.00013698,2]
[333116896,1721875848999,-500.0,0.00013698,2]
[333116897,1721875849010,-500.0,0.00013698,2]
[333116898,1721875849020,-500.0,0.00013698,2]
[333116899,1721875849033,-551.022864,0.00013698,2]
[333116900,1721875849044,-551.022864,0.00013698,2]
[333116901,1721875849056,-551.022864,0.00013698,2]